{"text_format":"1","workbook":"xlsx","n_sheets":1,"sheets":["Feuil1"],"not_rendered":{"charts":0,"images":47,"macros":0,"external_links":0,"defined_names":0,"comments":0,"pivot_tables":0},"unopened":[],"bounds":{"document_bytes":16777216,"sheet_cells":100000,"rows_first":2000,"rows_last":500,"rows_between":2000,"halvings":0,"cell_chars":16384,"cell_head_chars":4096},"cells_cut":0,"cells_raw":0,"read":"whole","date_system":"1900"}

{"sheet":"Feuil1","index":0,"n_rows":80,"n_cols":12,"rows_kept":80,"cut":false,"hidden":false,"merged":[[79,0,79,11],[0,0,1,2],[77,0,77,7],[77,8,78,11],[64,0,64,10],[73,0,74,7],[73,8,74,11],[76,0,76,7],[71,0,71,3],[71,4,71,10],[72,0,72,3],[72,4,72,10],[68,0,68,3],[68,4,68,10],[69,0,69,3],[69,4,69,10],[70,0,70,10],[65,0,65,10],[76,9,76,11],[44,4,47,4],[66,0,66,10],[67,4,67,10],[45,6,48,6],[39,2,42,2],[40,4,43,4],[67,0,67,3],[47,2,50,2],[48,4,51,4],[49,6,52,6],[50,0,53,0],[51,2,54,2],[52,4,55,4],[53,6,56,6],[54,0,57,0],[55,2,58,2],[56,4,59,4],[57,6,60,6],[58,0,61,0],[59,2,62,2],[60,4,63,4],[46,0,49,0],[26,0,29,0],[27,2,30,2],[28,4,31,4],[29,6,32,6],[30,0,33,0],[31,2,34,2],[32,4,35,4],[33,6,36,6],[34,0,37,0],[35,2,38,2],[36,4,39,4],[37,6,40,6],[38,0,41,0],[41,6,44,6],[42,0,44,0],[43,2,44,2],[24,4,27,4],[25,6,28,6],[19,2,22,2],[22,7,22,8],[5,2,13,2],[22,0,25,0],[23,2,26,2],[36,7,36,8],[27,7,27,8],[28,7,28,8],[29,7,29,8],[30,7,30,8],[31,7,31,8],[23,7,23,8],[24,7,24,8],[25,7,25,8],[26,7,26,8],[16,7,16,8],[18,7,18,8],[19,7,19,8],[20,7,20,8],[21,7,21,8],[32,7,32,8],[33,7,33,8],[34,7,34,8],[35,7,35,8],[48,7,48,8],[49,7,49,8],[50,7,50,8],[51,7,51,8],[46,7,46,8],[20,4,23,4],[21,6,24,6],[2,0,2,11],[7,7,7,8],[3,2,3,8],[4,0,12,0],[6,4,14,4],[7,6,15,6],[4,1,4,8],[5,3,5,8],[6,5,6,8],[13,7,13,8],[14,7,14,8],[15,7,15,8],[13,0,17,0],[14,2,18,2],[15,4,19,4],[16,6,20,6],[18,0,21,0],[0,3,1,11],[78,0,78,7],[61,7,61,8],[61,6,63,6],[60,7,60,8],[52,7,52,8],[53,7,53,8],[54,7,54,8],[55,7,55,8],[56,7,56,8],[58,7,58,8],[59,7,59,8],[75,0,75,11],[37,7,37,8],[38,7,38,8],[39,7,39,8],[40,7,40,8],[41,7,41,8],[42,7,42,8],[43,7,43,8],[44,7,44,8],[57,7,57,8],[45,7,45,8],[47,7,47,8]]}
[null,null,null,"Bon de Commande des Anthologies"]
[]
["Adresse de l'asso : Ass Poésie Terps  M.A Balbastre 4 rue de l'Orbiel 11 600 Conques-sur-Orbiel - Chèque à l'ordre de Terpsichore."]
["Anthologies",null,"Nom et N° des Anthologies et des Recueils Enfants",null,null,null,null,null,null,"Unités","Prix Unité","Prix"]
[null,"Frontières N° 90",null,null,null,null,null,null,null,null,10,{"$f":"J5*K5","v":0}]
[null,null,null,"L'éphémère N° 88",null,null,null,null,null,null,10,{"$f":"J6*K6","v":0}]
[null,null,null,null,null,"Désir N° 86",null,null,null,null,10,0]
[null,null,null,null,null,null,null,"Courage N° 84",null,null,10,0]
[null,null,null,null,null,null,null,null,null,null,10,0]
[null,null,null,null,null,null,null,null,null,null,10,0]
[null,null,null,null,null,null,null,null,null,null,10,0]
[null,null,null,null,null,null,null,null,null,null,10,0]
[null,null,null,null,null,null,null,null,null,null,10,0]
[null,null,null,null,null,null,null,null,null,null,0,0]
[null,null,null,null,null,null,null,"Ardeur N° 80",null,null,10,0]
[null,null,null,null,null,null,null,"Temps Poétique N°77",null,null,10,0]
[null,null,null,null,null,null,null,"Le Temps en Poésie N° 77_579",null,null,10,0]
[null,null,null,null,null,null,null,null,null,null,10,0]
[null,null,null,null,null,null,null,"2000 vers pour l'an 2000 N° 61",null,null,10,0]
[null,null,null,null,null,null,null,"Poèmes en Liberté N° 66",null,null,10,0]
[null,null,null,null,null,null,null,"Les Arts N° ",null,null,10,0]
[null,null,null,null,null,null,null,"Grappes N° ",null,null,10,0]
[null,null,null,null,null,null,null,"Le Livre N° ",null,null,10,0]
[null,null,null,null,null,null,null,"Anthologie Poétique N° 79",null,null,10,0]
[null,null,null,null,null,null,null,"Danse avec les Mots N° ",null,null,10,0]
[null,null,null,null,null,null,null,"Anthologie Poétique N° 60",null,null,10,0]
[null,null,null,null,null,null,null,"Anthologie Poétique N° 75",null,null,10,0]
[null,null,null,null,null,null,null,"Lumière N° ",null,null,10,0]
[null,null,null,null,null,null,null,"Main N° ",null,null,10,0]
[null,null,null,null,null,null,null,"Renaître N° 33",null,null,10,0]
[null,null,null,null,null,null,null,"Poèmes en Liberté N° 55",null,null,10,0]
[null,null,null,null,null,null,null,"Nourritures N° ",null,null,10,0]
[null,null,null,null,null,null,null,"De Port en Port N° ",null,null,10,0]
[null,null,null,null,null,null,null,"Chants d'Etoiles N° ",null,null,10,0]
[null,null,null,null,null,null,null,"Prières de Poètes N° ",null,null,10,0]
[null,null,null,null,null,null,null,"La Terre N° ",null,null,10,0]
[null,null,null,null,null,null,null,"Couleurs de Femmes N° 63",null,null,10,0]
[null,null,null,null,null,null,null,"Poèmes en Liberté N° 71",null,null,10,0]
[null,null,null,null,null,null,null,"Europoésie N° ",null,null,10,0]
[null,null,null,null,null,null,null,"La Beauté N° ",null,null,10,0]
[null,null,null,null,null,null,null,"Planète en Péril N° ",null,null,10,0]
[null,null,null,null,null,null,null,"Vents et Moulins N° ",null,null,10,0]
[]
[]
[]
[null,null,null,null,null,null,null,"RECUEILS ENFANTS"]
[null,null,null,null,null,null,null,"Frontières",null,null,5,{"$f":"J47*K47","v":0}]
[null,null,null,null,null,null,null,"L'éphémère N° ",null,null,5,0]
[null,null,null,null,null,null,null,"Paysages N° ",null,null,5,0]
[null,null,null,null,null,null,null,"Le désir Pandémie N° ",null,null,5,0]
[null,null,null,null,null,null,null,"Murmures de Murs N° 61",null,null,5,0]
[null,null,null,null,null,null,null,"Métamorphose N° 70",null,null,5,0]
[null,null,null,null,null,null,null,"Art Poésie N° ",null,null,5,0]
[null,null,null,null,null,null,null,"Enfance N° 69",null,null,5,0]
[null,null,null,null,null,null,null,"L'Afrique N° 78",null,null,5,0]
[null,null,null,null,null,null,null,"Le Temps N° ",null,null,5,0]
[null,null,null,null,null,null,null,"Mots Rebelles N° 74",null,null,5,0]
[null,null,null,null,null,null,null,"Neuf N° ",null,null,5,0]
[null,null,null,null,null,null,null,"Poésie de l'Enfance N° ",null,null,5,0]
[null,null,null,null,null,null,null,"L'Ardeur N° ",null,null,5,0]
[null,null,null,null,null,null,null,"Enfance N° ",null,null,5,0]
[]
[]
[]
["TOTAL à payer",null,null,null,null,null,null,null,null,null,null,{"$f":"SUM(L5:L61)","v":0}]
["FINALISER LA COMMANDE"]
["Vos coordonnées postales pour l'envoi des anthologies"]
["Nom"]
["Prénom"]
["Adresse Postale"]
[]
["Courriel"]
["Téléphone"]
["Le numéro de votre virement sur le compte bancaire de l'association poésie Terpsichore dont le N° IBAN est (000000000000000000000000000000000000) "]
[]
["Téléchargez le bon de commande, complétez-le et enregistrez-le, puis veuillez nous le retourner par courriel à poesie.terpsichore@wanadoo.fr ou par courrier postal à l'adresse indiquée au bas du bon de commande. "]
["ou",null,null,null,null,null,null,null,"Date",{"$f":"NOW()","v":"2023-12-10T16:16:12.430"}]
["Chèque à l'ordre de Terpsichore / Adresse Postale :"]
[" Association Poésie Terpsichore Marie-Andrée Balbastre Le Cadran - 4 Rue de l’Orbiel 11600 CONQUES sur ORBIEL / France "]
["Envoyer le Bon de Commande Anthologies Terpsichore par courriel"]